[Event "KAZ-ch Women 2019"]
[Site "Almaty"]
[Date "2019.04.29"]
[Round "9.1"]
[White "Shauken, Aruzhan"]
[Black "Kamalidenova, Meruert"]
[Result "1/2-1/2"]
[ECO "E68"]
[WhiteElo "1685"]
[BlackElo "2051"]
[Annotator "NA RC"]
[PlyCount "104"]
[EventDate "2019.04.21"]
[EventType "tourn"]
[EventCountry "KAZ"]
[SourceTitle "playchess.com"]
[Source "ChessBase"]
[SourceQuality "1"]
[TimeControl "40/5400+30:1800+30"]

{[%evp 8,104,39,27,32767,32,34,35,35,37,37,32,59,35,67,49,59,10,17,12,25,-20,-18,-42,-41,-48,66,41,95,70,115,102,102,18,6,0,10,18,3,-16,14,17,27,9,24,6,33,41,58,0,9,-19,-11,-10,-12,-14,-8,-40,5,8,8,0,0,8,108,1,18,20,48,22,16,8,8,8,103,8,172,8,8,8,8,0,0,0,0,0,0,0,0,0,0,0,0,0,0,0,0,0,0]} 1. d4 {[%emt 0:00:00]} Nf6 {[%emt 0:00:00]} 2. c4 {[%emt 0:00:00]} g6 {[%emt 0:00:00]} 3. g3 {[%emt 0:00:00]} Bg7 {[%emt 0:00:00]} 4. Bg2 {[%emt 0:00:00]} O-O {[%emt 0:00:00]} 5. Nf3 {[%emt 0:00:00]} d6 {[%emt 0:00:00]} 6. O-O {[%emt 0:00:08]} Nbd7 {[%emt 0:00:05]} 7. Nc3 {[%emt 0:00:08]} e5 {[%emt 0:00:06]} 8. e4 {[%emt 0:00:21]} a6 {[%emt 0:00:07]} 9. Qc2 {[%emt 0:00:32]} exd4 {[%emt 0:00:08]} 10. Nxd4 {[%emt 0:00:05]} Ne5 {[%emt 0:00:08] E68: King's Indian: Fianchetto: 6...Nbd7 7 0-0 e5 8 e4} (10... Re8 11. Re1 Ne5 12. b3 c5 13. Nf3 Nfg4 14. Nxe5 Nxe5 15. Bb2 Nc6 16. Qd2 Qa5 17. Rad1 Bg4 18. f3 {½-½ (49) Giri,A (2772)-Ivanchuk,V (2728) Tbilisi 2017}) 11. b3 {[%emt 0:01:07]} Bd7 {[%emt 0:00:25]} 12. h3 {[%emt 0:01:32]} (12. Bb2 $16) 12... c5 $146 {[%emt 0:01:30]} ({Predecessor:} 12... Nc6 13. Be3 Re8 14. Rad1 Rb8 15. Nd5 Qc8 16. Kh2 Nd8 17. Bg5 Nxd5 18. cxd5 {1-0 (59) Zevallos,F-Murillo,H Peru 1995}) 13. Nde2 {[%emt 0:00:47]} b5 {[%emt 0:02:50]} 14. cxb5 {[%emt 0:02:47]} axb5 {[%emt 0:00:17]} 15. f4 {[%emt 0:05:49]} Nc6 {[%emt 0:00:19]} 16. Bb2 {[%emt 0:03:02]} Rb8 {[%emt 0:02:38]} (16... Qc8 $15) 17. Rad1 {[%emt 0:02:01]} Ne8 {[%emt 0:03:29]} 18. Nd5 {[%emt 0:02:44]} Be6 {[%emt 0:02:47]} 19. Bxg7 {[%emt 0:04:14]} Nxg7 {[%emt 0:01:44]} 20. Qb2 {[%emt 0:11:23]} (20. Ne3 $16) 20... Bxd5 $1 {[%emt 0:05:06]} 21. Rxd5 {[%emt 0:00:30]} Qe7 {[%emt 0:00:37]} 22. Rfd1 {[%emt 0:01:50]} Rfd8 {[%emt 0:00:59]} 23. e5 {[%emt 0:09:57]} dxe5 {[%emt 0:02:20]} 24. Rxd8+ {[%emt 0:00:18]} Rxd8 {[%emt 0:02:23]} 25. Rxd8+ {[%emt 0:00:06]} Nxd8 {[%emt 0:00:05]} 26. Qxe5 {[%emt 0:01:11]} Qxe5 {[%emt 0:00:40]} 27. fxe5 {[%emt 0:00:05]} Kf8 {[%emt 0:01:02]} 28. a3 {[%emt 0:04:25]} (28. a4 $14) 28... Nge6 {[%emt 0:03:32]} 29. Bd5 {[%emt 0:02:28]} Ke7 {[%emt 0:01:02]} 30. Bg2 {[%emt 0:04:25]} Nc7 {[%emt 0:04:48]} 31. Nf4 {[%emt 0:05:17]} Nde6 {[%emt 0:01:12]} 32. Kf2 {[%emt 0:02:23]} g5 {[%emt 0:02:35]} 33. Nd3 {[%emt 0:00:56]} c4 {[%emt 0:04:30]} 34. bxc4 {[%emt 0:00:06]} bxc4 {[%emt 0:00:03]} 35. Nb4 {[%emt 0:00:57]} Kd7 {[%emt 0:02:58]} (35... Nd4 $11 {remains equal.}) 36. Ke2 {[%emt 0:02:01]} (36. Ke3 $16) 36... Ng7 {[%emt 0:07:00]} 37. Kd2 {[%emt 0:02:23]} Ke6 {[%emt 0:00:19]} 38. Nc6 {[%emt 0:03:38]} Nh5 {[%emt 0:01:34]} 39. Kc3 {[%emt 0:03:41]} (39. g4 $5 {[%cal Rg4h5]} Nf4 40. Bf3 $14) 39... Nxg3 {[%emt 0:02:04]} 40. Kxc4 {[%emt 0:00:00]} Nf5 {[%emt 0:00:00]} (40... h5 $11) 41. Kc5 {[%emt 0:02:26]} h5 $2 {[%emt 0:02:53] [#]} (41... Kd7 $1 $11) 42. a4 $2 {[%emt 0:00:43]} (42. Bf3 $1 $18) 42... g4 {[%emt 0:00:33]} 43. hxg4 {[%emt 0:00:24]} hxg4 {[%emt 0:00:10]} 44. a5 {[%emt 0:00:36]} Ne3 {[%emt 0:01:02]} 45. Bh1 {[%emt 0:03:15]} g3 {[%emt 0:00:57]} 46. Kb6 {[%emt 0:00:04]} Kd7 {[%emt 0:00:22]} ({But not} 46... g2 $2 47. Bxg2 Na8+ 48. Kb7 $18) 47. Kb7 {[%emt 0:03:13]} Ne6 {[%emt 0:03:27]} 48. a6 {[%emt 0:01:58]} Nc5+ {[%emt 0:01:13]} 49. Kb6 {[%emt 0:00:07]} Nxa6 {[%emt 0:00:14]} 50. Kxa6 {[%emt 0:00:05]} g2 {[%emt 0:00:05] [#]} 51. Bxg2 $1 {[%emt 0:00:05]} Nxg2 {[%emt 0:00:05]} 52. Kb6 {[%emt 0:00:08]} Ne3 $11 {[%emt 0:00:30]} 1/2-1/2

[Event "KAZ-ch Women 2019"]
[Site "Almaty"]
[Date "2019.04.29"]
[Round "9.5"]
[White "Nasybullina, Alfia"]
[Black "Ankudinova, Yelena"]
[Result "1-0"]
[ECO "D20"]
[WhiteElo "2065"]
[BlackElo "2099"]
[Annotator "NA RC"]
[PlyCount "75"]
[EventDate "2019.04.21"]
[EventType "tourn"]
[EventCountry "KAZ"]
[SourceTitle "playchess.com"]
[Source "ChessBase"]
[SourceQuality "1"]
[TimeControl "40/5400+30:1800+30"]

{[%evp 8,75,35,35,41,9,14,2,0,-4,7,0,0,-8,20,-8,13,-6,5,0,0,5,-7,-11,0,-5,-16,-62,-59,-62,-84,-73,-41,-75,-8,-19,-2,-2,-1,0,0,-21,-22,-34,0,0,100,106,110,104,100,133,116,130,375,431,780,32767,518,548,498,32767,387,450,32767,32767,806,1002,1020,893]} 1. d4 {[%emt 0:11:35]} d5 {[%emt 0:00:00]} 2. c4 {[%emt 0:00:05]} dxc4 {[%emt 0:00:00]} 3. e3 {[%emt 0:00:04]} Nf6 {[%emt 0:00:00]} 4. Bxc4 {[%emt 0:00:07]} a6 {[%emt 0:00:00]} 5. Nf3 {[%emt 0:02:12]} b5 {[%emt 0:00:25]} 6. Bb3 {[%emt 0:00:13]} e6 {[%emt 0:00:18]} 7. O-O {[%emt 0:00:24]} Bb7 {[%emt 0:00:19]} 8. a4 {[%emt 0:01:04]} b4 {[%emt 0:04:38]} 9. Nbd2 {[%emt 0:02:17]} c5 {[%emt 0:02:49]} 10. a5 {[%emt 0:01:31] D27: Queen's Gambit Accepted: Classical main line: 7 e4!? and 7 a4} (10. e4 Nc6 11. e5 Nd5 12. dxc5 Bxc5 13. Ne4 Be7 14. Bg5 O-O 15. Nd6 Rb8 16. Bxd5 exd5 17. Bxe7 Nxe7 18. Qd3 {0-1 (60) Melkumyan,H (2642)-Postny,E (2651) Sarajevo 2012}) 10... Nc6 {[%emt 0:06:37]} 11. Nc4 {[%emt 0:00:30]} Qc7 {[%emt 0:01:17]} 12. Qe2 $146 {[%emt 0:06:35]} ({Predecessor:} 12. e4 Nxd4 13. Nxd4 cxd4 14. e5 Nd7 15. Qxd4 Qc6 {1-0 (25) Kasperkiewicz,P (1927)-Safanowski,T (1829) Warsaw 2019}) 12... Rd8 {[%emt 0:02:44]} 13. Bd2 {[%emt 0:03:01]} Be7 $1 {[%emt 0:15:48]} 14. Rfc1 {[%emt 0:02:12]} O-O {[%emt 0:02:37]} 15. h3 {[%emt 0:06:21]} Ne4 {[%emt 0:13:34]} 16. Bc2 {[%emt 0:11:03]} Nxd2 {[%emt 0:08:42]} 17. Qxd2 {[%emt 0:00:36]} cxd4 {[%emt 0:01:05]} 18. exd4 {[%emt 0:00:18]} Bf6 {[%emt 0:02:32]} 19. Ne3 {[%emt 0:01:19]} Qe7 {[%emt 0:01:26]} 20. d5 {[%emt 0:04:12]} g6 {[%emt 0:01:44]} ({Black should try} 20... Ne5 $15 21. Nxe5 Bxe5) 21. Bb3 {[%emt 0:01:45]} Ne5 {[%emt 0:07:13]} 22. Nxe5 $1 {[%emt 0:00:24]} Bxe5 {[%emt 0:00:03]} 23. Re1 {[%emt 0:04:00]} Bc7 {[%emt 0:03:59]} 24. Qd4 {[%emt 0:02:26]} h5 {[%emt 0:05:24]} 25. Rad1 {[%emt 0:05:10]} Qd6 {[%emt 0:05:42]} 26. g3 {[%emt 0:00:54]} Bxa5 {[%emt 0:06:47] [#]} (26... Rfe8 $11 {remains equal.}) 27. Qh4 $1 {[%emt 0:02:58]} exd5 {[%emt 0:01:01]} 28. Bxd5 {[%emt 0:01:14]} Qb8 {[%emt 0:01:17] [#]} 29. Qg5 $1 {[%emt 0:02:48]} Bxd5 {[%emt 0:01:31]} 30. Nxd5 {[%emt 0:00:28]} Qb5 $2 {[%emt 0:00:37]} (30... Kg7 $16 {is a better defense.}) 31. Re5 {[%emt 0:10:33]} ({Less strong is} 31. Nf6+ Kg7 $16) 31... Kg7 {[%emt 0:00:15]} (31... Bc7 $142 32. Ne7+ Kg7 33. Rxb5 Rxd1+ 34. Kg2 axb5 35. Nf5+ Kg8) 32. Qf6+ {[%emt 0:00:16]} Kh7 {[%emt 0:01:00]} 33. Rd4 {[%emt 0:02:10]} Qc5 {[%emt 0:01:26]} 34. Qf4 {[%emt 0:04:37]} Rd6 {[%emt 0:01:05]} 35. Nf6+ {[%emt 0:01:18] Discovered Attack} Rxf6 {[%emt 0:00:08]} 36. Qxf6 {[%emt 0:01:21]} Qc1+ {[%emt 0:02:16]} (36... Qxd4 $142 37. Rxh5+ {[%mdl 64] Discovered Attack} gxh5 38. Qxd4 Kg8) 37. Kg2 $18 {[%emt 0:00:20]} Bc7 {[%emt 0:01:36] [#]} 38. Re7 $1 {[%emt 0:00:27]} 1-0